bitfinex/quotes_BTCUSD_20241226
["timestamp","ask_amount","ask_price","bid_price","bid_amount"]
[1735245863925,0.0532074,95644.0,95633.0,0.0030855]
[1735245864352,0.0532074,95644.0,95633.0,0.01920127]
[1735245864554,0.0532074,95644.0,95633.0,0.01520127]
[1735245864759,0.0532074,95644.0,95633.0,0.0030855]
[1735245864964,0.02118199,95636.0,95633.0,0.0030855]
[1735245865342,0.02118199,95636.0,95633.0,0.2152165]
[1735245865537,0.00089861,95644.0,95633.0,0.2122165]
[1735245865750,0.00089861,95645.0,95633.0,0.2122165]
[1735245865948,0.02064338,95637.0,95633.0,0.2142165]
[1735245866108,0.02064338,95637.0,95633.0,0.21437157]
[1735245866317,0.02064338,95637.0,95633.0,0.21237157]
[1735245866765,0.02064338,95637.0,95633.0,0.21137157]
[1735245867217,0.02064338,95637.0,95633.0,0.20937157]
[1735245867623,0.02164338,95637.0,95633.0,0.20937157]
[1735245869105,0.02164338,95637.0,95633.0,0.21337157]
[1735245869282,0.001,95637.0,95633.0,0.21337157]
[1735245869903,0.001,95637.0,95633.0,0.00424057]
[1735245870328,0.001,95637.0,95633.0,0.21337157]
[1735245871813,0.001,95637.0,95635.0,0.209128]
[1735245873042,0.02087298,95644.0,95635.0,0.213128]
[1735245873218,0.02087298,95644.0,95635.0,0.422256]
[1735245873450,0.001,95637.0,95635.0,0.213128]
[1735245873860,0.001,95637.0,95635.0,0.209128]
[1735245874211,0.02087298,95644.0,95635.0,0.209128]
[1735245874417,0.02087298,95644.0,95633.0,0.02324057]
[1735245874799,0.02087298,95644.0,95634.0,0.20913]
[1735245875000,0.001,95637.0,95634.0,0.20913]
[1735245875176,0.001,95637.0,95635.0,0.002]
[1735245875802,0.001,95637.0,95636.0,0.209126]
[1735245876527,0.001,95637.0,95634.0,0.21113]
[1735245876528,0.001,95637.0,95634.0,0.20913]
[1735245876907,0.001,95637.0,95635.0,0.004]
[1735245877302,0.02087298,95644.0,95635.0,0.004]
[1735245877508,0.02087298,95644.0,95636.0,0.209126]
[1735245878119,0.02087298,95644.0,95634.0,0.20913]
[1735245878638,0.02087298,95644.0,95636.0,0.004]
[1735245879097,0.02087298,95644.0,95634.0,0.20913]
[1735245879849,0.02087298,95644.0,95634.0,0.21013]
[1735245880147,0.21000861,95643.0,95634.0,0.001]
[1735245880351,0.00089861,95643.0,95634.0,0.001]
[1735245882476,0.00089861,95643.0,95633.0,0.00024057]
[1735245882767,0.02104398,95644.0,95633.0,0.00024057]
[1735245882965,0.02104398,95644.0,95634.0,0.002]
[1735245883376,0.00089861,95643.0,95634.0,0.002]
[1735245883582,0.00089861,95643.0,95633.0,0.00024057]
[1735245883794,0.00089861,95643.0,95633.0,0.00224057]
[1735245884321,0.10398632,95642.0,95633.0,0.00224057]
[1735245884497,0.20913,95635.0,95633.0,0.00224057]
[1735245884730,0.10488493,95634.0,95633.0,0.00224057]
[1735245885144,0.10488493,95634.0,95633.0,0.00024057]
[1735245886195,0.10488493,95634.0,95633.0,0.00124057]
[1735245886627,0.10488493,95634.0,95633.0,0.00024057]
[1735245886827,0.10488493,95634.0,95633.0,0.00124057]
[1735245887246,0.20887125,95634.0,95633.0,0.00124057]
[1735245887446,0.20897264,95634.0,95633.0,0.00124057]
[1735245888529,0.10498632,95634.0,95633.0,0.00124057]
[1735245888732,0.10588493,95634.0,95633.0,0.00124057]
[1735245902355,0.20915,95625.0,95621.0,8.55e-05]
[1735245902554,0.40288632,95622.0,95621.0,0.00017522]
[1735245902785,0.56244894,95622.0,95621.0,0.00017522]
[1735245903002,0.209209,95599.0,95597.0,0.06819871]
[1735245903209,0.18568632,95598.0,95597.0,0.06819871]
[1735245903406,0.0489,95597.0,95595.0,0.13644354]
[1735245903629,0.10398632,95596.0,95595.0,0.00015515]
[1735245903852,0.10488493,95596.0,95595.0,0.00015515]
[1735245906752,0.10488493,95596.0,95595.0,0.00215515]
[1735245907191,0.10488493,95596.0,95595.0,0.00015515]
[1735245907461,0.17027492,95596.0,95595.0,0.00015515]
[1735245907711,0.17027492,95596.0,95595.0,0.00215515]
[1735245908243,0.17027492,95596.0,95595.0,0.00015515]
[1735245909502,0.17027492,95596.0,95595.0,0.00115515]
[1735245909745,0.17327492,95596.0,95595.0,0.00115515]
[1735245909979,0.17327492,95596.0,95595.0,0.00015515]
[1735245910222,0.17027492,95596.0,95595.0,0.00015515]
[1735245910490,0.17327492,95596.0,95595.0,0.00015515]
[1735245912147,0.20925,95579.0,95570.0,8.56e-05]
[1735245912348,0.20925,95579.0,95578.0,0.0001372]
[1735245912349,0.38873632,95579.0,95578.0,0.0001372]
[1735245913795,0.17948632,95579.0,95578.0,0.0001372]
[1735245914025,0.10488493,95579.0,95578.0,0.0001372]
[1735245914228,0.10488493,95579.0,95578.0,0.0011372]
[1735245915757,0.14404792,95579.0,95578.0,0.0011372]
[1735245916383,0.10488493,95579.0,95578.0,0.0011372]
[1735245916603,0.15308493,95579.0,95578.0,0.0001372]
[1735245917066,0.15408493,95579.0,95578.0,0.0001372]
[1735245919558,0.17508594,95579.0,95578.0,0.0001372]
[1735245919967,0.02200101,95579.0,95578.0,0.0001372]
[1735245920174,0.001,95579.0,95578.0,0.0001372]
[1735245920809,0.10588493,95579.0,95578.0,0.0001372]
[1735245921056,0.17294513,95579.0,95578.0,0.0001372]
[1735245921295,0.17194513,95579.0,95578.0,0.0001372]
[1735245921898,0.0775,95605.0,95578.0,0.0001372]
[1735245922101,0.021087,95586.0,95581.0,0.2305]
[1735245922300,0.021087,95586.0,95585.0,0.173]
[1735245922504,0.209161,95620.0,95585.0,0.173]
[1735245922505,0.00089861,95619.0,95603.0,0.209197]
[1735245922689,0.10398632,95618.0,95605.0,0.209192]
[1735245922889,0.0205333,95612.0,95605.0,0.209192]
[1735245923244,0.0205333,95612.0,95604.0,0.0805]
[1735245923439,0.0205333,95612.0,95605.0,0.209192]
[1735245923641,0.0205333,95612.0,95604.0,0.0805]
[1735245923642,0.0205333,95612.0,95610.0,0.023]
[1735245923889,0.0775,95638.0,95610.0,0.023]
[1735245923890,0.003,95618.0,95610.0,0.023]
[1735245924103,0.00089861,95633.0,95613.0,0.023]
[1735245924104,0.209135,95632.0,95613.0,0.023]
[1735245924308,0.02096326,95623.0,95613.0,0.023]
[1735245924731,0.02096326,95623.0,95614.0,0.00104578]
[1735245924949,0.0001712,95634.0,95626.0,0.209146]
[1735245925352,0.02116499,95634.0,95626.0,0.209146]
[1735245925552,0.0001712,95634.0,95626.0,0.209146]
[1735245927305,0.0011712,95634.0,95621.0,0.232159]
[1735245927909,0.0011712,95634.0,95626.0,0.003]
[1735245928121,0.0001712,95634.0,95626.0,0.003]
[1735245928339,0.0011712,95634.0,95626.0,0.003]
[1735245928541,0.0011712,95634.0,95621.0,0.232159]
[1735245929505,0.0011712,95634.0,95626.0,0.002]
[1735245929662,0.0001712,95634.0,95626.0,0.002]
[1735245930112,0.0011712,95634.0,95626.0,0.002]
[1735245930314,0.0001712,95634.0,95626.0,0.002]
[1735245931208,0.0001712,95634.0,95623.0,0.023]
[1735245932241,0.0001712,95634.0,95623.0,0.025]
[1735245934281,0.0001712,95634.0,95623.0,0.023]
[1735245935330,0.0001712,95634.0,95623.0,0.025]
[1735245936341,0.0011712,95634.0,95623.0,0.025]
[1735245936545,0.0011712,95634.0,95623.0,0.002]
[1735245936741,0.0001712,95634.0,95623.0,0.002]
[1735245937306,0.0001712,95634.0,95621.0,0.023]
[1735245937504,0.04506081,95634.0,95621.0,0.023]
[1735245937713,0.04506081,95634.0,95623.0,0.001]
[1735245938256,0.04506081,95634.0,95621.0,0.023]
[1735245938394,0.04506081,95634.0,95621.0,0.024]
[1735245938844,0.00106981,95634.0,95621.0,0.023]
[1735245939057,0.0001712,95634.0,95622.0,0.0010457]
[1735245939228,0.0001712,95634.0,95623.0,0.001]
[1735245939475,0.0001712,95634.0,95625.0,0.023]
[1735245939852,0.0001712,95634.0,95623.0,0.001]
[1735245940515,0.0001712,95634.0,95621.0,0.023]
[1735245940731,0.0001712,95634.0,95621.0,0.024]
[1735245940910,0.0001712,95634.0,95623.0,0.023]
[1735245941485,0.0001712,95634.0,95623.0,0.024]
[1735245942319,0.0001712,95634.0,95623.0,0.023]
[1735245942528,0.0011712,95634.0,95626.0,0.023]
[1735245942690,0.0011712,95634.0,95625.0,0.081]
[1735245942691,0.0011712,95634.0,95629.0,0.023]
[1735245942881,0.0011712,95634.0,95633.0,0.173]
[1735245943081,0.0011712,95634.0,95633.0,0.17404549]
[1735245943686,0.0001712,95634.0,95633.0,0.17404549]
[1735245945436,0.0011712,95634.0,95633.0,0.18004549]
[1735245945692,0.0041712,95634.0,95633.0,0.18004549]
[1735245946802,0.0041712,95634.0,95633.0,0.19735617]
[1735245947053,0.0041712,95634.0,95633.0,0.30134245]
[1735245947259,0.0041712,95634.0,95633.0,0.300297]
[1735245947462,0.0011712,95634.0,95633.0,0.300297]
[1735245948009,0.0011712,95634.0,95633.0,0.19631068]
[1735245948211,0.0011712,95634.0,95633.0,0.30134249]
[1735245948415,0.0011712,95634.0,95633.0,0.300297]
[1735245948624,0.0021712,95634.0,95633.0,0.300297]
[1735245952712,0.0021712,95634.0,95633.0,0.400297]
[1735245954304,0.0021712,95634.0,95633.0,0.300297]
[1735245956384,0.01303594,95659.0,95643.0,0.023]
[1735245956593,0.01355272,95659.0,95643.0,0.023]
[1735245956863,0.01265411,95659.0,95643.0,0.023]
[1735245957631,0.01265411,95659.0,95643.0,0.001]
[1735245958266,0.01265411,95659.0,95644.0,0.023]
[1735245959496,0.01365411,95659.0,95644.0,0.023]
[1735245959875,0.01265411,95659.0,95644.0,0.023]
[1735245960230,0.01265411,95659.0,95644.0,0.024]
[1735245960425,0.22262872,95659.0,95644.0,0.001]
[1735245961408,0.22262872,95659.0,95644.0,0.01801073]
[1735245961843,0.03557114,95658.0,95644.0,0.01801073]
[1735245962278,0.01265411,95659.0,95645.0,0.023]
[1735245962658,0.01265411,95659.0,95646.0,0.00104541]
[1735245962867,0.01265411,95659.0,95645.0,0.023]
[1735245963814,0.20997661,95658.0,95644.0,0.01701073]
[1735245964013,0.20997661,95658.0,95639.0,0.15]
[1735245964237,0.20997661,95658.0,95640.0,0.232117]
[1735245965033,0.00089861,95658.0,95640.0,0.023]
[1735245965242,0.01265411,95659.0,95646.0,0.023]
[1735245965436,0.01265411,95659.0,95646.0,0.02404541]
[1735245965760,0.01265411,95659.0,95646.0,0.02504541]
[1735245966874,0.01265411,95659.0,95649.0,0.24184123]
[1735245967078,0.00051678,95659.0,95650.0,0.27803161]
[1735245967281,0.00068798,95659.0,95658.0,0.4482]
[1735245967487,0.00068798,95659.0,95658.0,0.60008632]
[1735245968884,0.00968798,95659.0,95658.0,0.60008632]
[1735245969100,0.00068798,95659.0,95658.0,0.60008632]
[1735245969210,0.00968798,95659.0,95658.0,1.14638632]
[1735245969412,0.018,95659.0,95658.0,1.04738632]
[1735245969632,0.009,95659.0,95658.0,2.01271138]
[1735245969843,0.0168983,95659.0,95658.0,2.01271138]
[1735245970895,0.0168983,95659.0,95658.0,1.48035098]
[1735245971100,0.00248325,95659.0,95658.0,1.48035098]
[1735245971948,0.00248325,95659.0,95658.0,1.43338297]
[1735245972152,0.00248325,95659.0,95658.0,1.53338297]
[1735245972311,0.00248325,95659.0,95658.0,1.43338297]
[1735245972707,0.00248325,95659.0,95658.0,1.04012942]
[1735245973726,0.00248325,95659.0,95658.0,1.14012942]
[1735245973928,0.00248325,95659.0,95658.0,1.04012942]
[1735245974124,0.00248325,95659.0,95658.0,1.14012942]
[1735245974348,0.00248325,95659.0,95658.0,1.04012942]
[1735245974592,0.00248325,95659.0,95658.0,0.89948632]
[1735245974793,0.00248325,95659.0,95658.0,0.99948632]
[1735245974948,0.078,95675.0,95658.0,0.82428632]
[1735245975150,0.049,95674.0,95668.0,0.15]
[1735245975347,0.049,95674.0,95669.0,0.023]
[1735245975972,0.049,95674.0,95669.0,0.232054]
[1735245976580,0.05,95674.0,95670.0,0.15]
[1735245977040,0.051,95674.0,95670.0,0.15]
[1735245977719,0.051,95674.0,95671.0,0.209049]
[1735245977908,0.002,95674.0,95671.0,0.418098]
[1735245978118,0.001,95674.0,95672.0,0.023]
[1735245978331,0.07042428,95683.0,95678.0,0.023]
[1735245978738,0.07042428,95683.0,95676.0,0.023]
[1735245978936,0.07042428,95683.0,95678.0,0.023]
[1735245979328,0.049,95683.0,95679.0,0.209032]
[1735245979653,0.049,95683.0,95678.0,0.023]
[1735245979853,0.049,95683.0,95679.0,0.209032]
[1735245980439,0.078,95685.0,95682.0,0.209025]
[1735245980771,0.00032619,95691.0,95690.0,0.232008]
[1735245982006,0.00032619,95691.0,95690.0,1.23229432]
[1735245982232,0.0001712,95718.0,95704.0,0.358977]
[1735245982424,0.0001712,95718.0,95704.0,1.13226332]
[1735245982629,0.0001712,95718.0,95704.0,1.23226332]
[1735245983042,0.0001712,95718.0,95704.0,1.03226332]
[1735245983445,0.0011712,95705.0,95704.0,1.03726332]
[1735245984883,0.0021712,95705.0,95704.0,1.04526332]
[1735245986257,0.0021712,95705.0,95704.0,1.14526332]
[1735245986971,0.0021712,95705.0,95704.0,1.16127775]
[1735245989120,0.0011712,95705.0,95704.0,1.15627775]
[1735245989480,0.0021712,95705.0,95704.0,1.16527775]
[1735245989910,0.0011712,95705.0,95704.0,1.15627775]
[1735245990296,0.0001712,95705.0,95704.0,1.14827775]
[1735245990497,0.0011712,95705.0,95704.0,1.15427775]
[1735245990913,0.0001712,95705.0,95704.0,1.14827775]
[1735245991125,0.0001712,95705.0,95704.0,1.15627775]
[1735245991382,0.0021712,95705.0,95704.0,1.16427775]
[1735245991999,0.00189709,95705.0,95704.0,1.16427775]
[1735245994106,0.00089709,95705.0,95704.0,1.15627775]
[1735245994330,0.00189709,95705.0,95704.0,1.16227775]
[1735245994888,0.0001712,95718.0,95717.0,0.358949]
[1735245995089,0.0001712,95718.0,95717.0,0.381949]
[1735245996407,0.0011712,95718.0,95717.0,0.388949]
[1735245996605,0.0011712,95718.0,95717.0,0.393949]
[1735246000562,0.0011712,95718.0,95717.0,0.40886852]
[1735246000775,0.0011712,95718.0,95717.0,0.02691952]
[1735246000976,0.00206981,95718.0,95717.0,0.02691952]
[1735246002569,0.0011712,95718.0,95717.0,0.02691952]
[1735246003219,0.0011712,95718.0,95717.0,0.23586852]
[1735246003368,0.0011712,95718.0,95717.0,0.38586852]
[1735246009239,0.0011712,95718.0,95717.0,0.02691952]
[1735246009454,0.18705613,95718.0,95717.0,0.012]
[1735246009895,0.1265,95707.0,95691.0,0.209003]
[1735246010100,0.00089861,95706.0,95699.0,0.0150246]
[1735246011295,0.00089861,95706.0,95674.0,0.1406431]
[1735246011296,0.23048632,95705.0,95674.0,0.1406431]
[1735246011507,0.29541771,95705.0,95675.0,0.209039]
[1735246012527,0.23848632,95705.0,95686.0,0.01500396]
[1735246012957,0.23848632,95705.0,95676.0,0.173]
[1735246013159,0.23848632,95705.0,95704.0,0.0040855]
[1735246013521,0.23048632,95705.0,95704.0,8.55e-05]
[1735246013743,0.25143632,95705.0,95704.0,8.55e-05]
[1735246015050,0.25443632,95705.0,95704.0,8.55e-05]
[1735246015509,0.34257035,95705.0,95704.0,8.55e-05]
[1735246015716,0.0455,95676.0,95659.0,8.55e-05]
[1735246015917,0.1265,95666.0,95659.0,0.00024049]
[1735246017363,0.1265,95666.0,95659.0,0.00324049]
[1735246018008,0.13915,95666.0,95659.0,0.00324049]
[1735246018216,0.1265,95666.0,95660.0,0.023]
[1735246018426,60.0,95994.0,95659.0,0.00324049]
[1735246018427,0.02145888,95670.0,95662.0,0.173]
[1735246018640,0.004,95666.0,95664.0,0.2558]
[1735246018848,0.0792,95692.0,95666.0,0.273]
[1735246019059,0.0792,95692.0,95680.0,0.09184123]
[1735246019264,0.0486,95698.0,95682.0,0.209025]
[1735246019469,0.0486,95698.0,95683.0,0.023]
[1735246019686,0.14079314,95697.0,95681.0,0.15]
[1735246019883,0.006,95692.0,95681.0,0.15]
[1735246020343,0.006,95692.0,95682.0,0.023]
[1735246020547,0.0486,95698.0,95687.0,0.209013]
[1735246021107,0.0486,95698.0,95682.0,0.023]
[1735246021305,0.0486,95698.0,95684.0,0.023]
[1735246021832,0.0486,95698.0,95685.0,0.00104499]
[1735246022750,0.0486,95698.0,95687.0,0.209014]
[1735246023642,0.000418,95704.0,95689.0,0.023]
[1735246023846,0.000418,95704.0,95689.0,0.173]
[1735246024434,0.000418,95704.0,95691.0,0.023]
[1735246025474,0.000589,95704.0,95691.0,0.023]
[1735246025683,0.000589,95704.0,95695.0,0.023]
[1735246025892,0.000589,95704.0,95695.0,0.02404488]
[1735246026282,0.000589,95704.0,95697.0,0.023]
[1735246026722,0.000589,95704.0,95691.0,0.01485965]
[1735246026723,0.000589,95704.0,95703.0,0.358979]
[1735246028183,0.000589,95704.0,95703.0,0.381979]
[1735246029031,0.001589,95704.0,95703.0,0.381979]
[1735246029171,0.001589,95704.0,95703.0,0.386979]
[1735246029955,0.001589,95704.0,95703.0,0.005]
[1735246031063,0.001589,95704.0,95703.0,0.0167065]
[1735246031263,0.001589,95704.0,95703.0,0.005]
[1735246032896,0.23367532,95704.0,95703.0,0.005]
[1735246033110,0.129689,95704.0,95703.0,0.005]
[1735246033324,0.129689,95704.0,95693.0,0.01171544]
[1735246033533,0.129689,95704.0,95689.0,0.20901]
[1735246033752,0.129689,95704.0,95693.0,0.208999]
[1735246033960,0.134689,95704.0,95696.0,0.023]
[1735246034393,0.129689,95704.0,95696.0,0.023]
[1735246034624,0.128689,95704.0,95696.0,0.023]
[1735246034822,0.137689,95704.0,95697.0,0.208992]
[1735246035056,0.137689,95704.0,95696.0,0.023]
[1735246035261,0.128689,95704.0,95696.0,0.023]
[1735246035814,0.128689,95704.0,95689.0,0.22200247]
[1735246035815,0.128689,95704.0,95689.0,0.01299247]
[1735246036023,0.128689,95704.0,95671.0,0.00066891]
[1735246036024,0.0771,95702.0,95671.0,0.00066891]
[1735246036224,0.209008,95690.0,95665.0,0.209061]
[1735246036432,0.258012,95688.0,95659.0,0.1407286]
[1735246036608,0.4269396,95688.0,95661.0,0.209069]
[1735246036807,0.4269396,95688.0,95663.0,0.023]
[1735246037213,0.4269396,95688.0,95666.0,0.01159755]
[1735246037390,0.4269396,95688.0,95659.0,8.55e-05]
[1735246037391,0.5040396,95688.0,95659.0,8.55e-05]
[1735246037915,0.0771,95668.0,95659.0,8.55e-05]
[1735246038109,0.00130671,95667.0,95659.0,0.00024049]
[1735246039448,0.00104517,95667.0,95659.0,0.00024049]
[1735246039649,0.0213884,95664.0,95659.0,0.00024049]
[1735246039849,0.01001491,95664.0,95659.0,0.00024049]
[1735246040054,0.00063679,95667.0,95659.0,0.00024049]
[1735246040772,0.05997076,95668.0,95659.0,0.00424049]
[1735246041107,0.209058,95667.0,95659.0,0.00424049]
[1735246041314,0.10777714,95668.0,95659.0,0.00424049]
[1735246041514,0.05997076,95668.0,95659.0,0.00424049]
[1735246041732,0.0205503,95667.0,95659.0,0.00424049]
[1735246041905,0.05997076,95668.0,95659.0,0.00424049]
[1735246042171,0.05997076,95668.0,95659.0,0.00024049]
[1735246042384,0.05997076,95668.0,95659.0,0.00324049]
[1735246042597,0.03894388,95668.0,95659.0,0.00324049]
[1735246042994,0.03894388,95668.0,95659.0,0.00024049]
[1735246043433,0.02096935,95674.0,95661.0,0.209071]
[1735246043642,0.209019,95685.0,95660.0,0.023]
[1735246043851,0.10398632,95684.0,95659.0,0.00224049]
[1735246044061,0.10398632,95684.0,95664.0,0.209065]
[1735246044253,0.209023,95683.0,95664.0,0.209065]
[1735246044481,0.10398632,95682.0,95664.0,0.209065]
[1735246044868,0.10398632,95682.0,95661.0,0.209071]
[1735246044869,0.31301232,95682.0,95662.0,0.173]
[1735246045561,0.33397329,95682.0,95664.0,0.023]
[1735246045770,0.33397329,95682.0,95664.0,0.173]
[1735246045771,0.12494729,95682.0,95664.0,0.173]
[1735246045901,0.02096097,95682.0,95665.0,0.023]
[1735246046105,0.02596097,95682.0,95665.0,0.023]
[1735246046724,0.02496097,95682.0,95662.0,0.15104516]
[1735246046932,0.02596097,95682.0,95671.0,0.023]
[1735246047340,0.02196097,95682.0,95669.0,0.023]
[1735246047699,0.02196097,95682.0,95671.0,0.023]
[1735246048124,0.02096097,95682.0,95671.0,0.023]
[1735246048327,0.02096097,95682.0,95671.0,0.001]
[1735246048541,0.02096097,95682.0,95669.0,0.023]
[1735246049002,0.02096097,95682.0,95671.0,0.001]
[1735246049213,0.02096097,95682.0,95672.0,0.023]
[1735246049446,0.20903,95680.0,95671.0,0.003]
[1735246049617,0.209038,95677.0,95671.0,0.001]
[1735246051015,0.209038,95677.0,95669.0,0.002]
[1735246051567,0.209038,95677.0,95669.0,0.003]
[1735246051766,0.209038,95677.0,95659.0,0.02324049]
[1735246051971,0.209038,95677.0,95671.0,0.001]
[1735246052528,0.209041,95675.0,95659.0,0.00024049]
[1735246052873,0.209041,95675.0,95669.0,0.001]
[1735246053126,0.209038,95677.0,95669.0,0.001]
[1735246053330,0.209038,95677.0,95659.0,0.00024049]
[1735246053538,0.209038,95677.0,95671.0,0.001]
[1735246053743,0.02096097,95682.0,95671.0,0.001]
[1735246053744,0.1273,95672.0,95671.0,0.001]
[1735246053950,0.23128632,95672.0,95671.0,0.001]
[1735246054568,0.209073,95660.0,95659.0,0.00024049]
[1735246054701,0.44035932,95660.0,95659.0,0.00024049]
[1735246055776,0.44235932,95660.0,95659.0,0.00024049]
[1735246055983,0.44935932,95660.0,95659.0,0.00024049]
[1735246056152,0.44735932,95660.0,95659.0,0.00024049]
[1735246056369,0.007,95660.0,95659.0,0.00024049]
[1735246056565,0.01,95660.0,95659.0,0.02324049]
[1735246057148,0.01,95660.0,95659.0,0.17428579]
[1735246057354,0.003,95660.0,95659.0,0.29031322]
[1735246057572,0.0001712,95687.0,95684.0,0.023]
[1735246058415,0.0001712,95687.0,95685.0,0.00104502]
[1735246058588,0.0001712,95687.0,95686.0,0.17404495]
[1735246058788,0.0021712,95687.0,95686.0,0.17404495]
[1735246059243,0.0001712,95687.0,95686.0,0.17404495]
[1735246060686,0.0001712,95687.0,95686.0,0.173]
[1735246061099,0.0011712,95687.0,95686.0,0.183]
[1735246061307,0.0021712,95687.0,95686.0,0.183]
[1735246062350,0.0021712,95687.0,95686.0,0.18404495]
[1735246062794,0.0021712,95687.0,95686.0,0.183]
[1735246064074,0.0001712,95687.0,95686.0,0.173]
[1735246064481,0.0011712,95687.0,95686.0,0.18]
[1735246064656,0.0001712,95687.0,95686.0,0.177]
[1735246064879,0.0001712,95687.0,95686.0,0.173]
[1735246065087,0.0021712,95687.0,95686.0,0.181]
[1735246066585,0.0021712,95687.0,95686.0,0.18204495]
[1735246067269,0.0021712,95687.0,95686.0,0.181]
[1735246068655,0.0021712,95687.0,95686.0,0.031]
[1735246069994,0.0011712,95687.0,95686.0,0.026]
[1735246070192,0.0011712,95687.0,95686.0,0.03]
[1735246070393,0.0001712,95687.0,95686.0,0.027]
[1735246070692,0.0001712,95687.0,95686.0,0.025]
[1735246071073,0.0001712,95687.0,95686.0,0.028]
[1735246071233,0.0011712,95687.0,95686.0,0.031]
[1735246071433,0.0011712,95687.0,95686.0,0.026]
[1735246071632,0.0011712,95687.0,95686.0,0.023]
[1735246071633,0.0001712,95687.0,95686.0,0.023]
[1735246071843,0.0021712,95687.0,95686.0,0.03204497]
[1735246072044,0.0021712,95687.0,95686.0,0.031]
[1735246072247,0.0011712,95687.0,95686.0,0.028]
[1735246073168,0.0011712,95687.0,95686.0,0.02904494]
[1735246073629,0.0011712,95687.0,95686.0,0.02704494]
[1735246074213,0.0021712,95687.0,95686.0,0.03204494]
[1735246074410,0.0021712,95687.0,95686.0,0.031]
[1735246074824,0.0021712,95687.0,95686.0,0.03204494]
[1735246075205,0.0011712,95687.0,95686.0,0.02904494]
[1735246075970,0.0001712,95687.0,95686.0,0.02404494]
[1735246076592,0.0011712,95687.0,95686.0,0.02704494]
[1735246077324,0.0021712,95687.0,95686.0,0.03304494]
[1735246077858,0.0021712,95687.0,95686.0,0.032]
[1735246081035,0.0021712,95687.0,95686.0,0.009]
[1735246081410,0.0021712,95687.0,95686.0,0.032]
[1735246083360,0.0021712,95687.0,95686.0,0.28598632]
[1735246084304,0.0001712,95687.0,95686.0,0.48600232]
[1735246084718,0.0141712,95687.0,95686.0,0.58700232]
[1735246084924,0.0141712,95687.0,95686.0,0.68700232]
[1735246085130,0.00292791,95687.0,95686.0,0.68700232]
[1735246085334,0.000589,95704.0,95694.0,0.1]
[1735246085534,0.000589,95704.0,95699.0,0.15]
[1735246085696,0.000589,95704.0,95703.0,0.358979]
[1735246085897,0.000589,95704.0,95703.0,0.48596532]
[1735246087725,0.000589,95704.0,95703.0,0.49096532]
[1735246087925,0.000589,95704.0,95703.0,0.49996532]
[1735246089419,0.000589,95704.0,95703.0,0.50923971]
[1735246092350,0.049389,95704.0,95703.0,0.014]
[1735246092599,0.0752251,95704.0,95703.0,0.014]
[1735246093225,0.049389,95704.0,95703.0,0.005]
[1735246093433,0.07015388,95704.0,95687.0,0.209012]
[1735246093652,0.208989,95699.0,95685.0,0.1406431]
[1735246093827,0.208982,95702.0,95684.0,0.023]
[1735246094004,0.31296832,95702.0,95684.0,0.023]
[1735246094611,0.31296832,95702.0,95688.0,0.001]
[1735246094989,0.31296832,95702.0,95686.0,0.173]
[1735246095443,0.208993,95697.0,95686.0,0.173]
[1735246095615,0.208997,95695.0,95685.0,0.023]
[1735246095836,0.077,95696.0,95685.0,0.023]
[1735246096357,0.077,95696.0,95684.0,0.002]
[1735246096565,0.209017,95686.0,95684.0,0.002]
[1735246096799,0.10398632,95685.0,95668.0,0.209055]
[1735246096985,0.10398632,95685.0,95669.0,0.023]
[1735246097646,0.10398632,95685.0,95669.0,0.173]
[1735246097846,0.12506103,95685.0,95684.0,0.001]
[1735246098337,0.0454,95683.0,95665.0,0.173]
[1735246098545,0.0454,95683.0,95667.0,0.023]
[1735246098714,0.0454,95683.0,95669.0,0.003]
[1735246098914,0.0454,95683.0,95671.0,0.173]
[1735246099129,0.0454,95683.0,95672.0,0.209047]
[1735246099320,0.0454,95683.0,95672.0,0.02404521]
[1735246099939,0.0454,95683.0,95672.0,0.023]
[1735246100586,0.0454,95683.0,95672.0,0.173]
[1735246100784,0.0454,95683.0,95682.0,0.023]
[1735246101545,0.0454,95683.0,95673.0,0.023]
[1735246102076,0.0454,95683.0,95672.0,0.002]
[1735246102445,0.0454,95683.0,95682.0,0.002]
[1735246102688,0.0454,95683.0,95672.0,0.002]
[1735246102689,0.209035,95678.0,95672.0,0.002]
[1735246102862,0.077,95682.0,95673.0,0.002]
[1735246103122,0.286027,95682.0,95673.0,0.002]
[1735246103424,0.286027,95682.0,95664.0,0.023]
[1735246103693,0.286027,95682.0,95659.0,8.55e-05]
[1735246103694,0.09184123,95680.0,95659.0,8.55e-05]
[1735246103925,0.16014683,95681.0,95659.0,8.55e-05]
[1735246103926,0.209065,95664.0,95659.0,8.55e-05]
[1735246104152,0.209065,95664.0,95659.0,1e-08]
[1735246104153,0.418138,95662.0,95659.0,1e-08]
[1735246104379,0.209073,95660.0,95659.0,1e-08]
[1735246104577,0.31305932,95660.0,95659.0,1e-08]
[1735246104784,0.31305932,95660.0,95657.0,0.00545876]
[1735246104785,0.209106,95646.0,95638.0,0.09373474]
[1735246104987,0.209101,95648.0,95627.0,0.209144]
[1735246105195,0.31308732,95648.0,95627.0,0.209144]
[1735246105387,0.31308732,95648.0,95619.0,0.30289574]
[1735246105388,0.209115,95642.0,95621.0,0.21899651]
[1735246105603,0.209115,95642.0,95628.0,0.00545703]
[1735246105847,0.0454,95638.0,95629.0,0.023]
[1735246106048,0.04548632,95638.0,95628.0,0.00545703]
[1735246106688,0.10398632,95637.0,95628.0,0.00545703]
[1735246106876,0.209136,95632.0,95628.0,0.00545703]
[1735246107084,0.209136,95632.0,95629.0,0.002]
[1735246107085,0.10398632,95631.0,95629.0,0.002]
[1735246107500,0.209139,95630.0,95628.0,0.00545703]
[1735246107707,0.10398632,95629.0,95628.0,0.00745703]
[1735246108337,0.09142908,95629.0,95628.0,0.00745703]
[1735246109440,0.09142908,95629.0,95628.0,0.00545703]
[1735246109865,0.09442908,95629.0,95628.0,0.00545703]
[1735246111207,0.09142908,95629.0,95628.0,0.00545703]
[1735246111521,0.09442908,95629.0,95628.0,0.00545703]
[1735246111728,0.22212908,95629.0,95628.0,0.00545703]